bitfinex/quotes_SOLUSD_20240906
["timestamp","ask_amount","ask_price","bid_price","bid_amount"]
[1725637271070,7.77,128.7,128.65,8.05390925]
[1725637271266,7.7693,128.72,128.65,8.05390925]
[1725637271591,7.7686,128.73,128.66,43.66795298]
[1725637271774,7.7683,128.73,128.68,43.66795298]
[1725637271955,7.7671,128.75,128.7,43.66795298]
[1725637272159,7.7664,128.76,128.72,43.66795298]
[1725637272354,0.8413169,128.83,128.74,50.33405298]
[1725637272553,0.8413169,128.83,128.76,43.66795298]
[1725637272770,0.8413169,128.83,128.77,46.55240025]
[1725637273152,0.8413169,128.83,128.79,43.66795298]
[1725637273355,7.7651,128.78,128.77,1.55230263]
[1725637273568,7.7664,128.76,128.74,8.21878316]
[1725637273765,19.4109,128.8,128.75,45.0]
[1725637273966,19.4109,128.8,128.74,8.21883228]
[1725637274169,7.7657,128.77,128.76,1.55273228]
[1725637274474,7.7675,128.74,128.72,1.55286719]
[1725637274685,7.7681,128.73,128.7,6.1032]
[1725637274850,7.7676,128.74,128.71,1.55337232]
[1725637275047,21.9637,128.81,128.71,45.2213253]
[1725637275248,7.7675,128.75,128.71,45.2213253]
[1725637275681,7.7677,128.74,128.7,7.65640913]
[1725637275981,7.7695,128.71,128.67,43.66795298]
[1725637276286,7.77,128.7,128.66,6.589]
[1725637276459,7.7689,128.72,128.67,43.66795298]
[1725637276656,7.7689,128.72,128.68,1.55335281]
[1725637277056,7.7696,128.71,128.69,1.553493]
[1725637277848,19.4168,128.76,128.69,1.553493]
[1725637278052,19.4117,128.79,128.69,45.22144598]
[1725637278265,7.7675,128.75,128.69,45.22144598]
[1725637278478,7.7678,128.74,128.69,45.22144598]
[1725637278677,60.0,128.85,128.71,43.66795298]
[1725637278678,7.7663,128.77,128.71,43.66795298]
[1725637278864,19.4077,128.82,128.73,43.66795298]
[1725637279064,7.7664,128.76,128.74,46.55287382]
[1725637279261,7.7665,128.76,128.74,1.55287382]
[1725637279764,19.4077,128.82,128.74,46.55287382]
[1725637279968,19.4077,128.82,128.75,43.66795298]
[1725637280179,19.4077,128.82,128.76,46.55254687]
[1725637280491,19.4077,128.82,128.75,45.22049947]
[1725637280682,7.7662,128.77,128.73,43.66795298]
[1725637280976,7.7659,128.77,128.74,46.55294924]
[1725637281367,19.4109,128.8,128.74,1.55294924]
[1725637281581,7.7669,128.75,128.74,1.55294924]
[1725637281794,7.7669,128.75,128.72,1.55311795]
[1725637281953,7.7669,128.75,128.72,46.55311795]
[1725637282153,7.766,128.77,128.72,46.55311795]
[1725637282357,59.0603169,128.83,128.74,43.66795298]
[1725637282558,7.7659,128.77,128.75,1.5527031]
[1725637282758,7.7664,128.76,128.74,1.55289671]
[1725637282974,7.7663,128.77,128.74,1.55289671]
[1725637283154,19.4089,128.81,128.73,1.55291764]
[1725637283359,19.4089,128.81,128.74,1.55286234]
[1725637283560,7.7678,128.74,128.69,43.66795298]
[1725637283894,19.4124,128.79,128.7,1.55328667]
[1725637284188,7.7677,128.74,128.71,1.55323036]
[1725637284508,19.4124,128.79,128.71,45.22118334]
[1725637284663,20.0,128.78,128.71,45.22118334]
[1725637284866,7.7665,128.76,128.72,45.0]
[1725637285073,7.767,128.75,128.73,1.55305337]
[1725637285274,7.7676,128.74,128.73,1.5530521]
[1725637285579,7.7683,128.73,128.69,43.66795298]
[1725637285777,19.4148,128.77,128.67,63.09635298]
[1725637285778,7.769,128.72,128.67,63.09635298]
[1725637286288,7.7694,128.71,128.68,1.55347022]
[1725637286788,7.769,128.72,128.68,1.55347022]
[1725637287087,19.4177,128.75,128.68,1.55347022]
[1725637287280,20.0,128.74,128.68,1.55347022]
[1725637287668,19.4135,128.78,128.69,43.66795298]
[1725637287972,19.4135,128.78,128.7,1.55320259]
[1725637288177,19.4135,128.78,128.69,45.22125895]
[1725637288593,7.7678,128.74,128.69,52.99155895]
[1725637288770,45.2951,128.8,128.71,43.66795298]
[1725637288771,7.7668,128.76,128.71,43.66795298]
[1725637288968,7.7659,128.77,128.73,43.66795298]
[1725637289181,7.7653,128.78,128.74,1.55286531]
[1725637289486,19.4096,128.81,128.74,46.55286531]
[1725637289690,19.4096,128.81,128.74,1.55286531]
[1725637290183,19.4096,128.81,128.71,67.52675298]
[1725637290184,19.4096,128.81,128.75,1.55286536]
[1725637290570,19.4096,128.81,128.74,45.0]
[1725637290770,19.4096,128.81,128.74,46.55287197]
[1725637290980,20.0,128.8,128.74,46.55287197]
[1725637291781,7.7661,128.77,128.74,46.55287197]
[1725637292702,7.7669,128.75,128.73,6.3596]
[1725637293004,7.7679,128.74,128.71,16.0895]
[1725637293181,7.7663,128.77,128.71,69.07984478]
[1725637293385,39.4112,128.8,128.71,69.07984478]
[1725637293386,7.7673,128.75,128.71,61.31064478]
[1725637293986,7.7665,128.76,128.71,61.31064478]
[1725637294168,7.767,128.75,128.71,17.6426918]
[1725637294374,7.7676,128.74,128.72,45.0]
[1725637294576,7.7676,128.74,128.71,16.0895]
[1725637294785,19.4133,128.78,128.71,16.0895]
[1725637294786,7.7665,128.76,128.72,1.5532588]
[1725637294975,19.4133,128.78,128.71,59.75745298]
[1725637295169,20.0,128.77,128.7,27.3164819]
[1725637295369,7.7678,128.74,128.71,45.0]
[1725637296191,27.766,128.77,128.72,1.55335699]
[1725637296577,7.7653,128.78,128.73,7.7681]
[1725637296785,7.7653,128.78,128.74,46.55292372]
[1725637297599,7.7658,128.77,128.74,46.55292372]
[1725637297780,7.7658,128.77,128.73,45.22091443]
[1725637297979,7.7658,128.77,128.74,45.0]
[1725637298189,7.7658,128.77,128.74,1.55294765]
[1725637298496,7.7664,128.76,128.74,1.55304572]
[1725637298885,7.767,128.75,128.71,43.66795298]
[1725637299082,7.767,128.75,128.72,45.0]
[1725637299276,22.27616679,128.8,128.72,45.0]
[1725637299475,7.7664,128.76,128.73,1.55315843]
[1725637299797,22.27616679,128.8,128.74,1.55302939]
[1725637300001,0.8413169,128.83,128.77,6.1821]
[1725637300300,0.8413169,128.83,128.78,1.55259906]
[1725637300489,7.7644,128.8,128.78,1.55259906]
[1725637301291,20.2468169,128.83,128.77,7.73473022]
[1725637301599,7.7649,128.79,128.77,7.73473022]
[1725637301983,7.7643,128.8,128.77,7.73473022]
[1725637302395,7.7641,128.8,128.77,6.1821]
[1725637302573,7.7641,128.8,128.77,7.73479286]
[1725637302974,7.7648,128.79,128.77,7.73479286]
[1725637303180,39.407,128.82,128.77,6.1821]
[1725637303492,7.7648,128.79,128.78,1.55279909]
[1725637303695,20.0,128.79,128.78,1.55279909]
[1725637303905,8.6040169,128.83,128.78,9.31759909]
[1725637304076,8.6040169,128.83,128.79,45.0]
[1725637304286,8.6040169,128.83,128.8,1.55231994]
[1725637304777,8.6040169,128.83,128.79,1.55232658]
[1725637304778,7.7627,128.82,128.79,1.55232658]
[1725637304977,7.7627,128.82,128.8,1.55248689]
[1725637305175,0.8413169,128.83,128.79,19.4101]
[1725637305391,0.8413169,128.83,128.8,46.55215231]
[1725637305598,0.8413169,128.83,128.79,28.72635231]
[1725637305788,0.8413169,128.83,128.81,19.4079]
[1725637306002,0.8413169,128.83,128.82,46.55189338]
[1725637306377,0.8413169,128.83,128.82,45.0]
[1725637306911,0.8413169,128.83,128.77,6.1821]
[1725637307209,0.8413169,128.83,128.77,7.73405814]
[1725637307406,0.8413169,128.83,128.78,7.7647]
[1725637307407,8.6035169,128.83,128.78,7.7647]
[1725637307609,8.6035169,128.83,128.78,1.55230265]
[1725637307610,27.7628,128.82,128.78,1.55230265]
[1725637307984,7.7634,128.81,128.77,6.1821]
[1725637308178,20.0,128.82,128.77,6.1821]
[1725637308179,7.764,128.8,128.77,6.1821]
[1725637308605,27.7646,128.79,128.75,1.55265333]
[1725637308808,7.7646,128.79,128.77,1.55265333]
[1725637309192,7.7641,128.8,128.77,1.55265333]
[1725637309404,20.0,128.79,128.77,1.55265333]
[1725637309698,20.0,128.79,128.75,1.55276182]
[1725637310096,20.0,128.79,128.76,7.7663]
[1725637310407,20.0,128.8,128.76,7.7663]
[1725637310586,7.7646,128.79,128.77,1.55268966]
[1725637310908,27.7641,128.8,128.77,1.55268966]
[1725637311211,7.7647,128.79,128.77,1.55268966]
[1725637311508,7.7658,128.77,128.74,6.3627]
[1725637311922,7.7658,128.77,128.74,7.91572954]
[1725637313709,7.7658,128.77,128.74,6.3627]
[1725637313891,7.7658,128.77,128.75,1.55297115]
[1725637314394,7.7658,128.77,128.75,1.55301009]
[1725637314917,7.7654,128.78,128.75,1.55301009]
[1725637315113,20.0,128.77,128.75,1.55301009]
[1725637315884,20.0,128.77,128.74,45.0]
[1725637316107,20.0,128.79,128.75,1.55303344]
[1725637316321,7.7653,128.78,128.75,1.55303344]
[1725637316497,20.0,128.77,128.75,1.55303344]
[1725637316689,20.0,128.79,128.75,9.31993344]
[1725637316690,7.7649,128.79,128.75,9.31993344]
[1725637316910,7.7637,128.81,128.76,45.0]
[1725637317115,0.8413169,128.83,128.77,1.55246163]
[1725637317489,7.7633,128.81,128.77,1.55246163]
[1725637319213,20.0,128.8,128.77,1.55246163]
[1725637319511,27.7641,128.8,128.77,1.55258361]
[1725637320016,20.0,128.8,128.77,1.55258361]
[1725637320213,0.8413169,128.83,128.77,1.55258361]
[1725637320517,7.7639,128.8,128.78,1.55249106]
[1725637321010,7.7645,128.79,128.78,1.55249106]
[1725637321225,0.8413169,128.83,128.77,1.55270121]
[1725637321386,0.8413169,128.83,128.76,45.0]
[1725637321387,0.8413169,128.83,128.72,10.48172802]
[1725637321584,7.7654,128.78,128.73,43.66795298]
[1725637321786,0.8413169,128.83,128.74,1.55285214]
[1725637322180,7.7646,128.79,128.75,7.7668]
[1725637322417,7.7636,128.81,128.76,9.31878309]
[1725637322712,20.0,128.8,128.77,1.55255866]
[1725637322911,0.8413169,128.83,128.77,1.55255866]
[1725637323096,0.8413169,128.83,128.77,28.73215866]
[1725637323097,7.7629,128.82,128.77,28.73215866]
[1725637323411,7.7635,128.81,128.78,45.0]
[1725637323601,7.7635,128.81,128.79,1.55249443]
[1725637323989,7.763,128.82,128.8,1.55250042]
[1725637324191,8.6037169,128.83,128.8,1.55250042]
[1725637324516,0.8413169,128.83,128.8,1.55250042]
[1725637324710,0.8413169,128.83,128.81,43.66795298]
[1725637324887,0.8413169,128.83,128.82,9.31451976]
[1725637325217,0.8413169,128.83,128.82,54.31451976]
[1725637327191,2.90485397,128.91,128.82,54.31451976]
[1725637327192,2.90485397,128.91,128.86,15.4749]
[1725637327392,53.9056,128.98,128.88,43.66795298]
[1725637327592,19.3882,128.95,128.89,1.55125832]
[1725637327793,7.7581,128.9,128.87,1.55114723]
[1725637328010,7.7568,128.92,128.87,45.0]
[1725637328212,2.80085479,128.95,128.89,43.66795298]
[1725637328392,7.7552,128.95,128.9,46.55069018]
[1725637328810,8.5958169,128.96,128.9,46.55069018]
[1725637329013,7.755,128.95,128.9,46.55069018]
[1725637329189,0.8413169,128.96,128.9,46.55069018]
[1725637329395,0.8413169,128.96,128.88,1.55101972]
[1725637329599,20.8413169,128.96,128.88,1.55101972]
[1725637330005,7.7572,128.92,128.88,1.55101972]
[1725637330206,7.7562,128.93,128.88,1.55101972]
[1725637330619,20.8413169,128.96,128.88,1.55101972]
[1725637331415,0.8413169,128.96,128.92,49.81105298]
[1725637331593,0.8413169,128.96,128.95,7.7549]
[1725637331800,0.8413169,128.96,128.94,72.36207963]
[1725637332021,0.8413169,128.96,128.92,7.69355246]
[1725637332208,0.8413169,128.96,128.93,1.55070677]
[1725637332594,8.5961169,128.96,128.92,45.0]
[1725637332795,0.8413169,128.96,128.93,1.55077209]
[1725637333094,7.7549,128.95,128.93,1.55062652]
[1725637334325,7.7554,128.95,128.93,1.55062652]
[1725637334625,0.8413169,128.96,128.88,1.55093433]
[1725637334626,20.0,128.94,128.88,1.55093433]
[1725637334792,7.7561,128.93,128.88,1.55093433]
[1725637335197,7.7561,128.93,128.88,9.30953433]
[1725637335419,20.0,128.94,128.88,9.30953433]
[1725637335605,20.0,128.95,128.88,9.30953433]
[1725637335806,7.7574,128.91,128.88,1.55093433]
[1725637336100,20.2277169,128.96,128.86,65.61765298]
[1725637336101,0.8413169,128.96,128.9,43.66795298]
[1725637336307,0.8413169,128.96,128.92,43.66795298]
[1725637336508,0.8413169,128.96,128.93,1.55049097]
[1725637336702,0.8413169,128.96,128.93,9.30619097]
[1725637337006,0.8413169,128.96,128.93,1.55049097]
[1725637337202,0.8413169,128.96,128.93,46.55049097]
[1725637337400,0.8413169,128.96,128.95,7.7549]
[1725637337599,0.8413169,128.96,128.95,54.30488811]
[1725637338304,0.8413169,128.96,128.95,46.54998811]
[1725637338501,0.8413169,128.96,128.93,1.55031636]
[1725637339929,7.7562,128.93,128.91,1.5508177]
[1725637340107,7.7557,128.94,128.91,1.5508177]
[1725637340722,7.7561,128.93,128.91,1.5508177]
[1725637341098,19.3881,128.95,128.9,1.5510326]
[1725637341411,7.7568,128.92,128.88,1.55109281]
[1725637341915,7.7563,128.93,128.88,9.31009281]
[1725637342118,7.7563,128.93,128.88,1.55109281]
[1725637342427,7.7567,128.92,128.88,20.94859281]
[1725637343805,7.7567,128.92,128.88,1.55109281]
[1725637344032,7.7567,128.92,128.88,46.55109281]
[1725637344218,7.7561,128.93,128.89,7.7585]
[1725637344439,7.7561,128.93,128.9,1.55103109]
[1725637344803,0.8413169,128.96,128.9,45.21898407]
[1725637345006,0.8413169,128.96,128.95,7.7549]
[1725637345231,0.8413169,128.96,128.91,45.0]
[1725637345232,0.8413169,128.96,128.94,50.11565298]
[1725637345410,0.8413169,128.96,128.95,46.55038721]
[1725637345611,0.8413169,128.96,128.95,1.55038721]
[1725637345826,0.8413169,128.96,128.95,46.55038721]
[1725637346028,0.8413169,128.96,128.95,1.55038721]
[1725637346217,8.5961169,128.96,128.95,1.55056674]
[1725637346417,8.5961169,128.96,128.93,1.55070437]
[1725637346815,0.8413169,128.96,128.94,51.42325298]
[1725637347036,0.8413169,128.96,128.95,54.30519491]
[1725637347521,0.8413169,128.96,128.94,45.21808441]
[1725637347925,0.8413169,128.96,128.94,1.55013143]
[1725637349622,8.5957169,128.96,128.94,1.55013143]
[1725637349817,7.7553,128.95,128.91,19.3923]
[1725637350022,0.8413169,128.96,128.9,57.52535298]
[1725637350023,7.7555,128.94,128.9,57.52535298]
[1725637350227,0.8413169,128.96,128.9,1.55087204]
[1725637350551,19.3879,128.95,128.88,1.55104071]
[1725637350832,7.7568,128.92,128.9,1.55104071]
[1725637351034,19.3879,128.95,128.88,1.55123466]
[1725637351035,7.7574,128.91,128.88,1.55123466]
[1725637352135,0.8413169,128.96,128.88,45.21918764]
[1725637352435,7.7556,128.94,128.89,7.7581]
[1725637352611,7.7556,128.94,128.9,1.55097046]
[1725637352940,7.7562,128.93,128.9,1.55097046]
[1725637353114,7.7556,128.94,128.9,1.55097046]
[1725637353437,23.03680408,128.96,128.9,1.55101376]
[1725637353735,7.7573,128.91,128.9,1.55101376]
[1725637353942,7.7569,128.92,128.89,1.55121833]
[1725637354111,7.7569,128.92,128.9,1.55116166]
[1725637354439,7.7582,128.9,128.86,19.4006]
[1725637354616,7.7582,128.9,128.86,20.95196917]
[1725637354812,7.7586,128.89,128.85,1.55137996]
[1725637355034,7.7586,128.89,128.84,43.66795298]
[1725637355035,7.7591,128.88,128.87,1.55137996]
[1725637355237,7.7591,128.88,128.85,1.55156865]
[1725637355427,7.7597,128.87,128.84,45.21952524]
[1725637355614,7.7597,128.87,128.84,1.55157226]
[1725637355825,7.7609,128.85,128.82,1.55165525]
[1725637356117,7.7604,128.86,128.82,1.55165525]
[1725637356314,7.7613,128.85,128.81,1.55178501]
[1725637357344,7.7622,128.83,128.8,8.11130214]
[1725637357516,7.7622,128.83,128.79,1.55215764]
[1725637357716,19.4001,128.87,128.79,1.55215764]
[1725637357717,7.7638,128.81,128.79,1.55215764]
[1725637357961,7.7628,128.82,128.78,2.07877539]
[1725637359150,7.7629,128.82,128.78,0.52648828]
[1725637359318,7.764,128.8,128.78,0.52648828]
[1725637359523,7.7645,128.79,128.78,0.52648828]
[1725637360849,27.7645,128.79,128.78,0.52648828]
[1725637361056,7.7674,128.75,128.69,75.80285298]
[1725637361348,7.7674,128.75,128.7,9.32303565]
[1725637361522,7.7674,128.75,128.71,1.55313659]
[1725637361929,7.7665,128.76,128.71,9.32233659]
[1725637362144,7.7665,128.76,128.71,1.55313659]
[1725637362332,19.4124,128.79,128.71,1.55313659]
[1725637362333,7.7677,128.74,128.71,1.55313659]
[1725637362538,7.7671,128.75,128.7,1.5532287]
[1725637362747,7.7681,128.74,128.7,1.5532287]
[1725637362957,61.4892,128.8,128.65,16.5966]
[1725637362958,7.7699,128.71,128.66,19.43]
[1725637363243,7.7699,128.71,128.66,27.2021]
[1725637363428,7.7699,128.71,128.67,1.55363736]
[1725637363624,7.7706,128.69,128.66,1.55364995]
[1725637363866,7.7706,128.69,128.64,6.4666]
[1725637364153,38.8317,128.77,128.63,63.10265298]
[1725637364154,19.4226,128.72,128.63,63.10265298]
[1725637364722,19.4226,128.72,128.63,43.66795298]
[1725637364952,7.7719,128.67,128.63,1.55388714]
[1725637365129,7.772,128.67,128.63,1.55388714]
[1725637365327,7.7731,128.65,128.62,1.55431545]
[1725637365531,7.7747,128.63,128.6,1.55440931]
[1725637365750,7.7747,128.63,128.57,70.88945298]
[1725637366053,7.7747,128.63,128.58,7.7771]
[1725637366833,19.4294,128.68,128.59,1.55465324]
[1725637367039,7.7736,128.64,128.59,9.33115324]
[1725637367254,19.4294,128.68,128.59,1.55465324]
[1725637367462,20.0,128.67,128.59,1.55465324]
[1725637367642,7.7737,128.64,128.59,1.55465324]
[1725637369253,7.7737,128.64,128.59,46.55465324]
[1725637369880,19.4238,128.71,128.59,90.22260622]
[1725637370034,7.7714,128.68,128.63,7.7741]
[1725637370231,7.7714,128.68,128.64,46.55418471]
[1725637370430,7.7714,128.68,128.65,1.55418043]
[1725637370834,7.7707,128.69,128.65,1.55418043]
[1725637371037,7.7702,128.7,128.65,9.32668043]
[1725637371259,7.7702,128.7,128.66,45.0]
[1725637371645,21.9393,128.76,128.67,9.32573749]
[1725637371851,21.9393,128.76,128.68,46.55375692]
[1725637372054,7.7696,128.71,128.68,46.55375692]
[1725637372355,7.7696,128.71,128.68,1.55375692]
[1725637372940,24.79782205,128.76,128.68,1.55375692]
[1725637372941,7.7689,128.72,128.68,1.55375692]
[1725637373157,7.7676,128.74,128.68,1.55375692]
[1725637373448,7.7681,128.74,128.68,28.75135692]
[1725637373632,7.7681,128.74,128.69,52.7704]
[1725637373835,7.7681,128.74,128.69,45.0]
[1725637374238,7.7683,128.73,128.69,45.0]
[1725637374556,24.79782205,128.76,128.69,52.7701]
[1725637374744,24.79782205,128.76,128.68,1.55354251]
[1725637374935,24.79782205,128.76,128.66,9.32584115]
[1725637375258,24.79782205,128.76,128.67,45.0]
[1725637375479,20.0,128.75,128.67,45.0]
[1725637375633,20.0,128.75,128.65,63.10035298]
[1725637375634,7.7694,128.71,128.65,72.42699637]
[1725637375947,7.769,128.72,128.66,7.772]
[1725637376147,7.7696,128.71,128.66,7.772]
[1725637377255,7.7696,128.71,128.67,1.55390982]
[1725637377563,19.4208,128.73,128.66,1.55391014]
[1725637377855,19.4208,128.73,128.65,46.55390479]
[1725637377856,20.0,128.72,128.65,46.55390479]
[1725637378639,7.7701,128.7,128.65,54.32690479]
[1725637379575,27.7693,128.72,128.65,46.55390479]
[1725637379742,27.7693,128.72,128.66,27.203]
[1725637379943,27.7693,128.72,128.66,19.4308]
[1725637380143,20.0,128.72,128.67,1.55389491]
[1725637380353,7.7699,128.71,128.67,45.0]
[1725637380552,19.4196,128.74,128.64,15.42703023]
[1725637380759,20.0,128.73,128.65,45.0]
[1725637380959,7.7706,128.69,128.65,45.0]
[1725637381169,7.7713,128.68,128.65,45.0]
[1725637381469,19.4227,128.72,128.65,1.55413551]
[1725637381759,20.0,128.71,128.65,1.55413551]
[1725637382139,7.7713,128.68,128.65,1.55413551]
[1725637382343,20.0,128.71,128.65,1.55413551]
[1725637382548,34.79782205,128.76,128.6,7.8437705]
[1725637382549,50.0,128.73,128.6,7.8437705]
[1725637382749,50.0,128.73,128.6,6.2895]
[1725637382750,75.0,128.72,128.6,6.2895]
[1725637382957,7.7743,128.63,128.61,1.5547053]
[1725637383164,7.7744,128.63,128.6,1.55472974]
[1725637383367,7.7744,128.63,128.59,1.55473839]
[1725637383667,7.7735,128.65,128.6,7.7756]
[1725637383839,7.7735,128.65,128.61,1.55455105]
[1725637384044,23.0085,128.69,128.61,1.55455105]
[1725637384045,7.7742,128.63,128.61,1.55455105]
[1725637384255,7.7742,128.63,128.59,19.4411]
[1725637384965,7.7742,128.63,128.6,1.55473611]
[1725637385152,7.7742,128.63,128.59,19.4411]
[1725637385359,7.7736,128.64,128.6,1.55473543]
[1725637385593,7.7736,128.64,128.61,1.55461017]
[1725637385949,7.7745,128.63,128.59,19.4411]
[1725637386142,7.7745,128.63,128.6,46.55473131]
[1725637386450,7.7737,128.64,128.61,1.55473597]
[1725637386964,23.0085,128.69,128.61,1.55471761]
[1725637387141,20.0,128.68,128.61,1.55471761]
[1725637387345,7.7728,128.66,128.61,1.55471761]
[1725637387547,7.7728,128.66,128.61,9.32991761]
[1725637387761,7.773,128.65,128.62,45.0]
[1725637388146,7.773,128.65,128.63,1.55440913]
[1725637388469,22.8807,128.73,128.64,7.92371024]
[1725637388653,10.44904678,128.76,128.67,27.2008]
[1725637388853,6.5527,128.76,128.68,45.0]
[1725637389064,7.7695,128.71,128.68,45.0]
[1725637389565,6.5527,128.76,128.64,6.3693]
[1725637389767,7.7718,128.67,128.64,7.92341297]
[1725637389967,7.7715,128.68,128.65,1.55427512]
[1725637390148,6.5527,128.76,128.64,6.3693]
[1725637390149,7.772,128.67,128.64,6.3693]
[1725637390543,6.5527,128.76,128.64,6.3693]
[1725637390775,65.0,128.75,128.62,1.55425871]
[1725637390954,7.773,128.65,128.62,46.55425871]
[1725637391293,65.0,128.75,128.62,54.32885871]
[1725637391447,7.7722,128.67,128.62,54.32885871]
[1725637391648,7.7724,128.66,128.62,54.32885871]
[1725637392452,7.7731,128.65,128.62,46.55425871]
[1725637392673,115.0,128.75,128.6,8.21191728]
[1725637392674,7.7746,128.63,128.6,8.21191728]
[1725637392879,7.7738,128.64,128.61,1.55460907]
[1725637393087,19.4289,128.68,128.61,1.55460907]
[1725637393088,7.7731,128.65,128.61,1.55460907]
[1725637393370,7.7737,128.64,128.61,1.55460907]
[1725637393577,7.7722,128.67,128.62,19.4368]
[1725637393747,15.9601,128.7,128.62,28.76577395]
[1725637393748,7.7725,128.66,128.62,28.76577395]
[1725637394152,19.42,128.74,128.65,43.66795298]
[1725637394355,7.7698,128.71,128.66,73.75607027]
[1725637395279,7.77,128.7,128.66,73.75607027]
[1725637395483,7.77,128.7,128.66,45.0]
[1725637395484,7.7704,128.7,128.66,45.0]
[1725637395861,7.7708,128.69,128.66,45.0]
[1725637396059,7.7708,128.69,128.65,46.55390957]
[1725637396366,7.7713,128.68,128.65,45.0]
[1725637396567,7.7713,128.68,128.64,1.55398943]
[1725637396568,7.7713,128.68,128.64,46.55398943]
[1725637396777,7.7713,128.68,128.65,1.5541292]
[1725637397266,7.7713,128.68,128.64,52.7735]
[1725637397665,19.4256,128.7,128.63,1.55411182]
[1725637397880,7.7728,128.66,128.61,9.32963184]
[1725637398382,7.773,128.65,128.61,1.55433184]
[1725637398879,7.774,128.64,128.61,1.554495]
[1725637399060,7.774,128.64,128.6,6.6576]
[1725637399262,7.7731,128.65,128.6,14.4332]
[1725637399571,7.7731,128.65,128.59,16.0005]
[1725637399572,19.4331,128.65,128.59,16.0005]
[1725637399777,19.4331,128.65,128.58,1.55460201]
[1725637399778,7.7749,128.62,128.58,1.55460201]
[1725637400087,6.591,128.69,128.58,20.99720201]
[1725637400258,7.7742,128.63,128.59,7.7764]
[1725637400598,7.775,128.62,128.58,19.4426]
[1725637400756,7.7755,128.61,128.58,19.4426]
[1725637401583,7.7755,128.61,128.57,59.4322875]
[1725637401793,7.7755,128.61,128.57,51.6548875]
[1725637401992,7.7749,128.62,128.57,59.4322875]
[1725637402281,19.4345,128.64,128.58,45.0]
[1725637402493,7.7762,128.6,128.58,45.0]
[1725637402669,7.7756,128.61,128.58,45.0]
[1725637404169,16.6119,128.68,128.58,45.0]
[1725637404170,7.7748,128.62,128.58,45.0]
[1725637404882,19.4329,128.65,128.58,45.0]
[1725637405080,20.0,128.64,128.58,45.0]
[1725637405480,20.0,128.64,128.59,1.55494176]
[1725637405683,19.4329,128.65,128.58,46.55490767]
[1725637405880,20.0,128.64,128.58,45.0]
[1725637406079,7.776,128.61,128.58,45.0]
[1725637406384,7.7761,128.6,128.58,45.0]
[1725637406584,7.7766,128.59,128.56,19.4458]
[1725637406769,7.7766,128.59,128.57,1.55515871]
[1725637407295,7.7766,128.59,128.58,1.55520727]
[1725637408098,7.7761,128.6,128.58,1.55520727]
[1725637408261,20.0,128.64,128.58,20.99800727]
[1725637408468,7.775,128.62,128.59,45.0]
[1725637408776,7.775,128.62,128.6,1.55482763]
[1725637408970,7.7744,128.63,128.6,1.55482763]
[1725637409175,7.7744,128.63,128.61,1.55467918]
[1725637409384,7.7744,128.63,128.59,54.33127918]
[1725637409581,7.7734,128.65,128.6,19.4399]
[1725637409791,7.7736,128.64,128.61,46.55452853]
[1725637410001,7.7737,128.64,128.62,1.55465829]
[1725637410292,7.7742,128.63,128.61,45.0]
[1725637410482,7.7748,128.62,128.61,45.0]
[1725637410682,7.7743,128.63,128.6,45.0]
[1725637410867,16.6119,128.68,128.57,63.11135298]
[1725637411071,7.7754,128.62,128.57,70.88895298]
[1725637411269,7.7754,128.62,128.58,45.0]
[1725637411576,7.7754,128.62,128.58,52.7772]
[1725637411976,7.7756,128.61,128.57,72.44401796]
[1725637412177,7.7756,128.61,128.58,1.55497188]
[1725637413169,19.4328,128.65,128.58,1.55487535]
[1725637413370,7.775,128.62,128.58,9.33187535]
[1725637413584,7.7758,128.61,128.58,1.55477356]
[1725637413793,7.7758,128.61,128.58,45.0]
[1725637414006,7.7762,128.6,128.58,45.0]
[1725637414568,7.7762,128.6,128.57,46.55512701]
[1725637414776,7.7762,128.6,128.57,46.555089]
[1725637415781,7.7767,128.59,128.57,45.0]
[1725637416093,7.7773,128.58,128.56,45.0]
[1725637416592,7.7768,128.59,128.56,1.55521626]
[1725637417900,7.7762,128.6,128.56,9.33361626]